[Event "41st Amateur D7"]
[Site "ChessGUI4"]
[Date "2013.07.08"]
[Round "19.3"]
[White "Butcher 1.64 64-bit"]
[Black "MadChess 1.2"]
[Result "1-0"]
[BlackElo "2200"]
[ECO "E46"]
[EventDate "2013.??.??"]
[TimeControl "40/1500:40/1500:40/1500"]
[WhiteElo "2355"]

{ i5 Quad } 1.d4 { [%eval 0,1] [%emt 0:00:00] } 1...Nf6
{ [%eval 0,1] [%emt 0:00:00] } 2.c4 { [%eval 0,1] [%emt 0:00:00] } 2...e6
{ [%eval 0,1] [%emt 0:00:00] } 3.Nc3 { [%eval 0,1] [%emt 0:00:00] } 3...Bb4
{ [%eval 0,1] [%emt 0:00:00] } 4.e3 { [%eval 0,1] [%emt 0:00:00] } 4...O-O
{ [%eval 0,1] [%emt 0:00:00] } 5.Ne2 { [%eval 0,1] [%emt 0: 00:00] } 5...d5
{ [%eval 0,1] [%emt 0:00:00] } 6.a3 { [%eval 0,1] [%emt 0:00:00] } 6...Be7
{ [%eval 0,1] [%emt 0:00:00] } 7.cxd5 { [%eval 0,1] [%emt 0:00:00] } 7...exd5
{ [%eval 0,1] [%emt 0:00:00] } 8.g3 { [%eval 0,1] [%emt 0:00:00] } 8...Re8
{ [%eval 0,1] [%emt 0:00:00] } 9.Bg2 { [%eval -41,12] [%emt 0:01:04] } 9...b6
{ [%eval -32,10] [%emt 0:00:45] (c6) } 10.O-O
{ [%eval -18,11] [%emt 0:00:59] (O-O) } 10...Ba6
{ [%eval -25,11] [%emt 0:01:15] (Bd6) } 11.Re1
{ [%eval -15,11] [%emt 0:00:59] (Qc2) } 11...c6
{ [%eval -41,10] [%emt 0:00:18] (c6) } 12.Bd2
{ [%eval -11,11] [%emt 0: 00:58] (Bd2) } 12...Bd6
{ [%eval -45,10] [%emt 0:00:34] (Nbd7) } 13.Qc2
{ [%eval -14, 11] [%emt 0:01:04] (f3) } 13...Nbd7
{ [%eval -40,10] [%emt 0:00:31] (Nbd7) } 14.Nf4
{ [%eval -9,10] [%emt 0:01:03] (e4) } 14...Nf8
{ [%eval -34,10] [%emt 0:00:29] (Bb7) } 15.e4
{ [%eval 22,11] [%emt 0:01:02] (e4) } 15...Bxf4
{ [%eval -30,12] [%emt 0:00:40] (Bxf4) } 16.Bxf4
{ [%eval 28,11] [%emt 0:01:01] (Bxf4) } 16...Ne6
{ [%eval -26,11] [%emt 0:00:15] (Ne6) } 17.exd5
{ [%eval 20,11] [%emt 0:00:57] (Be5) } 17...Nxd5
{ [%eval -14,11] [%emt 0:00:21] (Nxd5) } 18.Nxd5
{ [%eval 27,11] [%emt 0:00:59] (Be3) } 18...cxd5
{ [%eval -27,12] [%emt 0:00:31] (cxd5) } 19.Be3
{ [%eval 27,11] [%emt 0:00:58] (Be3) } 19...Qd7
{ [%eval -2,11] [%emt 0:00:30] (Bb7) } 20.Qf5
{ [%eval 22,12] [%emt 0:00:56] (b3) } 20...Bc4
{ [%eval -2,11] [%emt 0:00:29] (Bc4) } 21.Rac1
{ [%eval 26,11] [%emt 0:00:48] (Rac1) } 21...Rad8
{ [%eval -16,10] [%emt 0:00:25] (Rad8) } 22.Bd2
{ [%eval 24,10] [%emt 0:00:47] (Qc2) } 22...a5
{ [%eval -3,9] [%emt 0: 00:49] (Qb5) } 23.Bc3
{ [%eval 28,10] [%emt 0:00:42] (Re3) } 23...g6
{ [%eval -7,10] [%emt 0:00:31] (Qd6) } 24.Qh3
{ [%eval 49,11] [%emt 0:00:43] (Qc2) } 24...f5
{ [%eval 1,10] [%emt 0:00:43] (Rc8) } 25.Qh6
{ [%eval 66,11] [%emt 0:00:46] (Qh4) } 25...Qg7
{ [%eval -17,10] [%emt 0:00:40] (Qe7) } 26.Qd2
{ [%eval 75,11] [%emt 0:00:45] (Qd2) } 26...Qd7
{ [%eval -17,9] [%emt 0:00:27] (Qf7) } 27.Re5
{ [%eval 87,11] [%emt 0: 00:40] (Re5) } 27...Re7
{ [%eval -26,10] [%emt 0:00:45] (Nc7) } 28.Qe3
{ [%eval 104,11] [%emt 0:00:44] (Qd1) } 28...Rde8
{ [%eval -19,11] [%emt 0:00:42] (Rde8) } 29.Rb1
{ [%eval 116,11] [%emt 0:00:43] (b4) } 29...Ba2
{ [%eval -30,10] [%emt 0:00:23] (Ba2) } 30.Re1
{ [%eval 132,11] [%emt 0:00:42] (Re1) } 30...Qb5
{ [%eval -26,10] [%emt 0:00: 27] (Bc4) } 31.h4
{ [%eval 167,11] [%emt 0:00:40] (Qh6) } 31...Kg7
{ [%eval -85,11] [%emt 0:01:14] (Bc4) } 32.h5
{ [%eval 178,10] [%emt 0:00:39] (h5) } 32...Qa4
{ [%eval -160,11] [%emt 0:01:38] (Bc4) } 33.Bd2
{ [%eval 331,10] [%emt 0:00:35] (hxg6) } 33...Kf7
{ [%eval -161,9] [%emt 0:00:26] (Kf7) } 34.Qh6
{ [%eval 345,9] [%emt 0:00:32] (Qh6) } 34...Nf8
{ [%eval -246,13] [%emt 0:01:04] (Nf8) } 35.Rxe7+
{ [%eval 345,7] [%emt 0:00:30] (Rxe7) } 35...Rxe7
{ [%eval -307,16] [%emt 0:01:50] (Rxe7) } 36.Rxe7+
{ [%eval 253,9] [%emt 0:00:27] (Rxe7) } 36...Kxe7
{ [%eval -300,15] [%emt 0:01:53] (Kxe7) } 37.Qg7+
{ [%eval 263,11] [%emt 0:00:26] (Qg7) } 37...Ke8
{ [%eval -300,13] [%emt 0:00:37] (Ke8) } 38.Bf1
{ [%eval 263,11] [%emt 0:00:23] (Bh6) } 38...Qd7
{ [%eval -270,12] [%emt 0:00:34] (Qd7) } 39.Qf6
{ [%eval 302,12] [%emt 0:00:21] (Qf6) } 39...Bc4
{ [%eval -274,14] [%emt 0:00:55] (Bc4) } 40.Bxc4
{ [%eval 293,11] [%emt 0:00:15] (Bh6) } 40...dxc4
{ [%eval -278,14] [%emt 0:00:41] (dxc4) } 41.Qxb6
{ [%eval 316,12] [%emt 0:00:43] (Qxb6) } 41...Ne6
{ [%eval -286,14] [%emt 0:00:47] (Ne6) } 42.hxg6
{ [%eval 331,13] [%emt 0:00:49] (hxg6) } 42...hxg6
{ [%eval -273,14] [%emt 0:00:28] (hxg6) } 43.Bxa5
{ [%eval 348,13] [%emt 0:00:44] (Bxa5) } 43...Kf7
{ [%eval -309,14] [%emt 0:00:43] (Kf7) } 44.Bc3
{ [%eval 361,13] [%emt 0:00:48] (Bc3) } 44...f4
{ [%eval -313,14] [%emt 0:01:00] (Qd5) } 45.Qb8
{ [%eval 357,13] [%emt 0:00:42] (Qb8) } 45...fxg3
{ [%eval -314,14] [%emt 0:00:52] (fxg3) } 46.Qxg3
{ [%eval 349,13] [%emt 0:00:53] (Qxg3) } 46...g5
{ [%eval -313,14] [%emt 0:01:04] (Qd5) } 47.Qh3
{ [%eval 345,13] [%emt 0:00:52] (Qh2) } 47...Kg6
{ [%eval -294,13] [%emt 0:00:25] (Qd5) } 48.a4
{ [%eval 351,14] [%emt 0:00:52] (a4) } 48...Qd5
{ [%eval -310,14] [%emt 0:00:57] (Qd5) } 49.Qg2
{ [%eval 331,13] [%emt 0:00:48] (Qg4) } 49...Qf5
{ [%eval -315,14] [%emt 0:00:37] (Qf5) } 50.Qc6
{ [%eval 261,15] [%emt 0:02:31] (Qc6) } 50...Qg4+
{ [%eval -222,17] [%emt 0:02:01] (Qg4) } 51.Kf1
{ [%eval 207,15] [%emt 0:00:45] (Kf1) } 51...Qd1+
{ [%eval -256,16] [%emt 0:00:23] (Qd1) } 52.Be1
{ [%eval 23,17] [%emt 0:02:13] (Be1) } 52...Qd3+
{ [%eval -217,16] [%emt 0:00:31] (Qd3) } 53.Kg1
{ [%eval 322,13] [%emt 0:00:39] (Kg1) } 53...Qe2
{ [%eval -135,15] [%emt 0:00:22] (Qe2) } 54.Bc3
{ [%eval 184,15] [%emt 0:00:58] (Qe8) } 54...Qg4+
{ [%eval 0,19] [%emt 0:00:41] (Qd1) } 55.Kf1
{ [%eval 154,15] [%emt 0:00:56] } 55...Qxd4
{ [%eval 0,100] [%emt 0:00: 00] (Qd1) } 56.Qxe6+
{ [%eval 15988,12] [%emt 0:00:30] } 56...Kh5
{ [%eval 31760,12] [%emt 0:00:21] (Kh5) } 57.Bxd4
{ [%eval 15990,12] [%emt 0:00:30] (Bxd4) } 57...c3
{ [%eval 31762,13] [%emt 0:00:38] (c3) } 58.f3
{ [%eval 15992,12] [%emt 0:00:30] (Qf7) } 58...c2
{ [%eval 31764,15] [%emt 0:00:48] (g4) } 59.Be3
{ [%eval 15994,11] [%emt 0:00:28] (Be3) } 59...c1=Q+
{ [%eval 31766,15] [%emt 0:00:41] (c1=Q) } 60.Bxc1
{ [%eval 15996,14] [%emt 0:00:29] (Bxc1) } 1-0

[Event "41st Amateur D7"]
[Site "ChessGUI4"]
[Date "2013.07.08"]
[Round "19.4"]
[White "Tigran 2.3 64-bit"]
[Black "Shallow 1.0 64-bit"]
[Result "0-1"]
[BlackElo "2200"]
[ECO "B23"]
[EventDate "2013.??.??"]
[TimeControl "40/1500:40/1500:40/1500"]
[WhiteElo "2289"]

{ i5 Quad } 1.e4 { [%eval 0,1] [%emt 0:00:00] } 1...c5
{ [%eval 0,1] [%emt 0:00:00] } 2.Nc3 { [%eval 0,1] [%emt 0:00:00] } 2...d6
{ [%eval 0,1] [%emt 0:00:00] } 3.f4 { [%eval 0,1] [%emt 0:00:00] } 3...Nc6
{ [%eval 0,1] [%emt 0:00:00] } 4.Nf3 { [%eval 0, 1] [%emt 0:00:00] } 4...g6
{ [%eval 0,1] [%emt 0:00:00] } 5.d4 { [%eval 0,1] [%emt 0: 00:00] } 5...cxd4
{ [%eval 0,1] [%emt 0:00:00] } 6.Nxd4 { [%eval 0,1] [%emt 0:00:00] } 6...Bg7
{ [%eval 0,1] [%emt 0:00:00] } 7.Be3 { [%eval 0,1] [%emt 0:00:00] } 7...Nf6
{ [%eval 0,1] [%emt 0:00:00] } 8.Nb3 { [%eval 0,1] [%emt 0:00:00] } 8...O-O
{ [%eval 0, 1] [%emt 0:00:00] } 9.Be2 { [%eval -19,12] [%emt 0:00:42] }
9...e5 { [%eval -3,13] [%emt 0:00:42] (a5) } 10.O-O
{ [%eval -1,13] [%emt 0:00:43] (fxe5) } 10...Be6
{ [%eval -8,13] [%emt 0:00:42] (Re8) } 11.f5
{ [%eval 49,13] [%emt 0:00:41] (f5) } 11...gxf5
{ [%eval -1,14] [%emt 0:00:42] (gxf5) } 12.exf5
{ [%eval 39,13] [%emt 0:00: 41] (exf5) } 12...Bxb3
{ [%eval 4,14] [%emt 0:00:42] (Bc8) } 13.axb3
{ [%eval 34,13] [%emt 0:00:42] (axb3) } 13...d5
{ [%eval 5,13] [%emt 0:00:42] (d5) } 14.Bc5
{ [%eval 21,13] [%emt 0:00:43] (Bc5) } 14...Re8
{ [%eval 14,13] [%emt 0:00:42] (Re8) } 15.Qd3
{ [%eval 9,13] [%emt 0:00:43] (Bb5) } 15...Rc8
{ [%eval 29,11] [%emt 0:00:42] (b6) } 16.Rfd1
{ [%eval 18,12] [%emt 0:00:40] (Rad1) } 16...b6
{ [%eval 32,13] [%emt 0:00:42] (d4) } 17.Bf2
{ [%eval 6,12] [%emt 0:00:43] (Ba3) } 17...d4
{ [%eval 22,14] [%emt 0:00: 42] (d4) } 18.Qh3
{ [%eval 20,13] [%emt 0:00:40] (Ne4) } 18...Nb4
{ [%eval 37,13] [%emt 0:00:42] (Nb4) } 19.Rxa7
{ [%eval 24,13] [%emt 0:00:44] (Rxa7) } 19...Nxc2
{ [%eval 37,13] [%emt 0:00:42] (Nxc2) } 20.Qd3
{ [%eval 19,13] [%emt 0:00:44] (Qd3) } 20...Nb4
{ [%eval 20,14] [%emt 0:00:42] (Nb4) } 21.Qb5
{ [%eval 22,13] [%emt 0: 00:44] (Qb5) } 21...Re7
{ [%eval 20,14] [%emt 0:00:42] (Nc6) } 22.Rxe7
{ [%eval 0,14] [%emt 0:00:44] (Rxe7) } 22...Qxe7
{ [%eval 16,14] [%emt 0:00:42] (Qxe7) } 23.Na4
{ [%eval -9,14] [%emt 0:00:45] (Na4) } 23...Nbd5
{ [%eval 18,13] [%emt 0:00:42] (Nbd5) } 24.Nxb6
{ [%eval -12,14] [%emt 0:00:45] (Nxb6) } 24...Nxb6
{ [%eval 3,13] [%emt 0:00: 42] (Nxb6) } 25.Qxb6
{ [%eval -23,14] [%emt 0:00:45] (Qxb6) } 25...Rc2
{ [%eval 5,13] [%emt 0:00:42] (Ne4) } 26.Bd3
{ [%eval 38,12] [%emt 0:00:45] (Re1) } 26...Rxb2
{ [%eval 25,12] [%emt 0:00:42] (Rxb2) } 27.Re1
{ [%eval 33,12] [%emt 0:00:46] (Ra1) } 27...Qf8
{ [%eval 26,12] [%emt 0:00:42] (Qf8) } 28.Qb7
{ [%eval 19,13] [%emt 0: 00:46] (Qb5) } 28...Rd2
{ [%eval 23,11] [%emt 0:00:42] (Rd2) } 29.Bc4
{ [%eval 13,12] [%emt 0:00:47] (Qf3) } 29...Ne8
{ [%eval -6,12] [%emt 0:00:42] (Ng4) } 30.Qf3
{ [%eval 101,13] [%emt 0:00:47] (Bg3) } 30...Qe7
{ [%eval -27,12] [%emt 0:00:42] (Ra2) } 31.Qa8
{ [%eval 71,13] [%emt 0:00:47] (Bg3) } 31...Qf8
{ [%eval -38,13] [%emt 0:00:42] (Qf8) } 32.Qd8
{ [%eval 83,13] [%emt 0:00:48] (Bh4) } 32...Nf6
{ [%eval -18,13] [%emt 0:00:42] (Bf6) } 33.Qxf8+
{ [%eval 61,15] [%emt 0:00:49] (Qxf8) } 33...Bxf8
{ [%eval -26,14] [%emt 0:00:42] (Bxf8) } 34.Bg3
{ [%eval 63,15] [%emt 0:00:49] (h3) } 34...e4
{ [%eval 1,14] [%emt 0:00:42] (Bd6) } 35.Bh4
{ [%eval 0,15] [%emt 0:00:50] (Bh4) } 35...Kg7
{ [%eval 0,14] [%emt 0:00:42] (Ng4) } 36.Bxf6+
{ [%eval 0,15] [%emt 0:00:44] (Bxf6) } 36...Kxf6
{ [%eval 1,14] [%emt 0:00:42] (Kxf6) } 37.Rxe4
{ [%eval 0,14] [%emt 0:00:54] (Rxe4) } 37...Rd1+
{ [%eval 2,13] [%emt 0:00:42] (d3) } 38.Kf2
{ [%eval -72, 15] [%emt 0:00:50] (Kf2) } 38...d3
{ [%eval 11,14] [%emt 0:00:42] (d3) } 39.Re1
{ [%eval -88,15] [%emt 0:01:00] (b4) } 39...Bc5+
{ [%eval 36,15] [%emt 0:00:42] (Bc5) } 40.Kf1
{ [%eval -99,17] [%emt 0:01:06] (Kf1) } 40...Rd2
{ [%eval 36,14] [%emt 0:00:42] (Rd2) } 41.h3
{ [%eval -103,16] [%emt 0:00:34] (Re8) } 41...Rf2+
{ [%eval 46,12] [%emt 0:00:37] (Rf2) } 42.Kg1
{ [%eval -118,16] [%emt 0:00:34] (Kg1) } 42...Rxf5+
{ [%eval 58,14] [%emt 0:00:37] (Rxf5) } 43.Kh2
{ [%eval -138,17] [%emt 0:00:29] (Kh2) } 43...d2
{ [%eval 58,15] [%emt 0:00:37] (d2) } 44.Rd1
{ [%eval -142,17] [%emt 0:00:34] (Rd1) } 44...Rf2
{ [%eval 59,15] [%emt 0:00:37] (Bb4) } 45.Kg3
{ [%eval -112,15] [%emt 0:00:34] (Kg3) } 45...Ke5
{ [%eval 60,14] [%emt 0:00:37] (Be3) } 46.b4
{ [%eval -120, 13] [%emt 0:00:30] (b4) } 46...Be3
{ [%eval 69,15] [%emt 0:00:37] (Be3) } 47.b5
{ [%eval -138,15] [%emt 0:00:34] (Bb5) } 47...f5
{ [%eval 75,15] [%emt 0:00:37] (h5) } 48.Bf1
{ [%eval -146,17] [%emt 0:00:34] (Bf1) } 48...h5
{ [%eval 76,15] [%emt 0:00:37] (h5) } 49.Kh2
{ [%eval -168,17] [%emt 0:00:35] (Kh2) } 49...f4
{ [%eval 169,15] [%emt 0:00:37] (f4) } 50.h4
{ [%eval -236,16] [%emt 0:00:35] (h4) } 50...Bb6
{ [%eval 377,16] [%emt 0:00:37] (Bd4) } 51.Bd3
{ [%eval -385,15] [%emt 0:00:35] (Bd3) } 51...f3
{ [%eval 405,16] [%emt 0:00:37] (f3) } 52.Kg3
{ [%eval -391,16] [%emt 0:00:35] (Bf1) } 52...fxg2
{ [%eval 463,15] [%emt 0:00:37] (fxg2) } 53.Bc2
{ [%eval -512,16] [%emt 0:00:31] (Bc2) } 53...Re2
{ [%eval 468,16] [%emt 0:00:37] (Kd5) } 54.Kf3
{ [%eval -602,18] [%emt 0:00:28] (Kf3) } 54...g1=N+
{ [%eval 468,15] [%emt 0:00:37] (g1=N) } 55.Rxg1
{ [%eval -614,18] [%emt 0:00:36] (Rxg1) } 55...Re3+
{ [%eval 469,16] [%emt 0:00:37] (Re3) } 56.Kg2
{ [%eval -647,19] [%emt 0:00:36] (Kg2) } 56...Rc3
{ [%eval 475,16] [%emt 0:00:37] (Rc3) } 57.Rd1
{ [%eval -654,19] [%emt 0:00:36] (Rd1) } 57...Rxc2
{ [%eval 502,16] [%emt 0:00:37] (Rxc2) } 58.Kf3
{ [%eval -710,18] [%emt 0:00:32] (Kf3) } 58...Rb2
{ [%eval 484,15] [%emt 0:00:37] (Ba5) } 59.Ke2
{ [%eval -716,17] [%emt 0:00:36] (Ke2) } 59...Ba5
{ [%eval 602,14] [%emt 0:00:37] (Ba5) } 0-1

[Event "41st Amateur D7"]
[Site "ChessGUI4"]
[Date "2013.07.08"]
[Round "19.5"]
[White "FireFly 2.6.0 64-bit"]
[Black "ChessKiss 1.7 64-bit"]
[Result "1-0"]
[BlackElo "2214"]
[ECO "E62"]
[EventDate "2013.??.??"]
[TimeControl "40/1500:40/1500:40/1500"]
[WhiteElo "2258"]

{ i5 Quad } 1.d4 { [%eval 0,1] [%emt 0:00:00] } 1...Nf6
{ [%eval 0,1] [%emt 0:00:00] } 2.c4 { [%eval 0,1] [%emt 0:00:00] } 2...g6
{ [%eval 0,1] [%emt 0:00:00] } 3.g3 { [%eval 0,1] [%emt 0:00:00] } 3...Bg7
{ [%eval 0,1] [%emt 0:00:00] } 4.Bg2 { [%eval 0, 1] [%emt 0:00:00] } 4...O-O
{ [%eval 0,1] [%emt 0:00:00] } 5.Nc3 { [%eval 0,1] [%emt 0:00:00] } 5...d6
{ [%eval 0,1] [%emt 0:00:00] } 6.Nf3 { [%eval 0,1] [%emt 0:00:00] } 6...Nc6
{ [%eval 0,1] [%emt 0:00:00] } 7.O-O { [%eval 0,1] [%emt 0:00:00] } 7...e5
{ [%eval 0,1] [%emt 0:00:00] } 8.d5 { [%eval 0,1] [%emt 0:00:00] } 8...Ne7
{ [%eval 0,1] [%emt 0:00:00] } 9.e4 { [%eval 36,12] [%emt 0:00:57] } 9...Kh8
{ [%eval -27,12] [%emt 0:00:43] (Bg4) } 10.Qb3
{ [%eval 69,11] [%emt 0:00:56] (Re1) } 10...b6
{ [%eval -30,12] [%emt 0:00:42] (Kg8) } 11.Bg5
{ [%eval 67,11] [%emt 0:00:55] (Be3) } 11...h6
{ [%eval 0,12] [%emt 0:00:40] (Kg8) } 12.Bd2
{ [%eval 65,11] [%emt 0:00:55] (Be3) } 12...Nd7
{ [%eval -6,12] [%emt 0:00:37] (Kg8) } 13.Qd1
{ [%eval 70,11] [%emt 0:00:54] (Qc2) } 13...Ba6
{ [%eval 15,11] [%emt 0:00:38] (f5) } 14.Qe2
{ [%eval 59,12] [%emt 0:00:53] (b3) } 14...f5
{ [%eval 23,12] [%emt 0:00:37] (f5) } 15.b4
{ [%eval 56,11] [%emt 0:00: 52] (b4) } 15...fxe4
{ [%eval 26,12] [%emt 0:00:36] (fxe4) } 16.Nxe4
{ [%eval 46,11] [%emt 0:00:51] (Qxe4) } 16...b5
{ [%eval 19,12] [%emt 0:00:32] (b5) } 17.cxb5
{ [%eval 61,12] [%emt 0:00:51] (c5) } 17...Bb7
{ [%eval 68,11] [%emt 0:00:34] (Bb7) } 18.Nc3
{ [%eval 64,11] [%emt 0:00:50] (Nc3) } 18...Nb6
{ [%eval 67,11] [%emt 0:00:33] (Nf6) } 19.Rab1
{ [%eval 3,11] [%emt 0:00:49] (Nh4) } 19...Nbxd5
{ [%eval 95,11] [%emt 0:00:32] (Nbxd5) } 20.Rfe1
{ [%eval 2,11] [%emt 0:00:48] (Rfd1) } 20...Rb8
{ [%eval 103,10] [%emt 0:00:31] (Qd7) } 21.a4
{ [%eval 0,11] [%emt 0:00:47] (a3) } 21...Qd7
{ [%eval 106,11] [%emt 0:00:28] (Qd7) } 22.Ne4
{ [%eval 0,10] [%emt 0:00:46] (Ne4) } 22...Nf5
{ [%eval 111,11] [%emt 0:00:21] (Kg8) } 23.Rbd1
{ [%eval -4,10] [%emt 0:00: 45] (Qd3) } 23...Nd4
{ [%eval 125,10] [%emt 0:00:22] (Rfd8) } 24.Nxd4
{ [%eval 0,11] [%emt 0:00:44] (Nxd4) } 24...exd4
{ [%eval 115,11] [%emt 0:00:28] (exd4) } 25.Qd3
{ [%eval -1,11] [%emt 0:00:36] (Qd3) } 25...Qf7
{ [%eval 120,10] [%emt 0:00:28] (Qf5) } 26.a5
{ [%eval -26,10] [%emt 0:00:36] (f3) } 26...Nc3
{ [%eval 145,11] [%emt 0:00:26] (Nc3) } 27.Bxc3
{ [%eval -24,12] [%emt 0:00:35] (Bxc3) } 27...dxc3
{ [%eval 145,10] [%emt 0:00:26] (dxc3) } 28.Re2
{ [%eval -16,11] [%emt 0:00:35] (f4) } 28...Qb3
{ [%eval 172,10] [%emt 0:00:25] (Qb3) } 29.a6
{ [%eval -42,11] [%emt 0:00:34] (a6) } 29...Bxe4
{ [%eval 198,12] [%emt 0:00:24] (Ba8) } 30.Bxe4
{ [%eval 54,11] [%emt 0: 00:34] (Bxe4) } 30...Qxb4
{ [%eval 205,11] [%emt 0:00:23] (g5) } 31.Rb1
{ [%eval 14,12] [%emt 0:00:27] (Rb1) } 31...Qc5
{ [%eval 206,12] [%emt 0:00:23] (Qd4) } 32.Bxg6
{ [%eval 26,11] [%emt 0:00:27] (Bxg6) } 32...Bd4
{ [%eval 200,11] [%emt 0:00:22] (d5) } 33.Kg2
{ [%eval 29,10] [%emt 0:00:27] (Kh1) } 33...Rxf2+
{ [%eval 213,11] [%emt 0:00: 20] (d5) } 34.Rxf2
{ [%eval -2,10] [%emt 0:00:27] (Rxf2) } 34...Bxf2
{ [%eval 133,13] [%emt 0:00:21] (Bxf2) } 35.Qf3
{ [%eval 2,11] [%emt 0:00:27] (Qf3) } 35...Bd4
{ [%eval 134,13] [%emt 0:00:21] (Bd4) } 36.Qf7
{ [%eval 10,11] [%emt 0:00:27] (Qf7) } 36...Bg7
{ [%eval 71,13] [%emt 0:00:20] (Bg7) } 37.Re1
{ [%eval 109,13] [%emt 0:00:27] (Be4) } 37...Qxb5
{ [%eval 141,12] [%emt 0:00:19] (Rf8) } 38.Re7
{ [%eval 225, 12] [%emt 0:00:53] (Qxc7) } 38...Rg8
{ [%eval 147,11] [%emt 0:00:18] (Rg8) } 39.Bc2
{ [%eval 626,12] [%emt 0:00:27] (Rxc7) } 39...Qc6+
{ [%eval -357,12] [%emt 0:00:17] (Qc6) } 40.Kh3
{ [%eval 981,12] [%emt 0:00:34] (Kh3) } 40...Qxa6
{ [%eval -347,12] [%emt 0:00:05] (Qxa6) } 41.g4
{ [%eval 1316,13] [%emt 0:00:49] (Qf6) } 41...Qb5
{ [%eval -11987,18] [%emt 0:01:01] (Qb5) } 42.g5
{ [%eval -31782,11] [%emt 0:00: 24] (g5) } 42...Qc4
{ [%eval -11989,25] [%emt 0:00:54] (Qb8) } 43.Qxc4
{ [%eval -31778, 9] [%emt 0:00:00] (Qxc4) } 43...Rf8
{ [%eval -11991,63] [%emt 0:00:15] (Rf8) } 44.Qd3
{ [%eval -31776,7] [%emt 0:00:00] (Qd3) } 44...Rf5
{ [%eval -11993,63] [%emt 0:00:00] (Rf3) } 1-0

[Event "41st Amateur D7"]
[Site "ChessGUI4"]
[Date "2013.07.08"]
[Round "20.1"]
[White "Gibbon 2.57a 64-bit"]
[Black "Carballo 0.8"]
[Result "0-1"]
[BlackElo "2273"]
[ECO "B23"]
[EventDate "2013.??.??"]
[TimeControl "40/1500:40/1500:40/1500"]
[WhiteElo "2251"]

{ i5 Quad } 1.e4 { [%eval 0,1] [%emt 0:00:00] } 1...c5
{ [%eval 0,1] [%emt 0:00:00] } 2.Nc3 { [%eval 0,1] [%emt 0:00:00] } 2...d6
{ [%eval 0,1] [%emt 0:00:00] } 3.g3 { [%eval 0,1] [%emt 0:00:00] } 3...Nc6
{ [%eval 0,1] [%emt 0:00:00] } 4.Bg2 { [%eval 0, 1] [%emt 0:00:00] } 4...g6
{ [%eval 0,1] [%emt 0:00:00] } 5.f4 { [%eval 0,1] [%emt 0: 00:00] } 5...Bg7
{ [%eval 0,1] [%emt 0:00:00] } 6.Nf3 { [%eval 0,1] [%emt 0:00:00] } 6...e6
{ [%eval 0,1] [%emt 0:00:00] } 7.Ne2 { [%eval 0,1] [%emt 0:00:00] } 7...Nge7
{ [%eval 0,1] [%emt 0:00:00] } 8.O-O { [%eval 0,1] [%emt 0:00:00] } 8...O-O
{ [%eval 0,1] [%emt 0:00:00] } 9.Kh1 { [%eval -31,13] [%emt 0:01:49] } 9...d5
{ [%eval 31,13] [%emt 0:00:37] (Bd7) } 10.e5
{ [%eval -32,13] [%emt 0:00:38] (exd5) } 10...b6
{ [%eval 47,14] [%emt 0:00:36] (Nf5) } 11.d3
{ [%eval -48,13] [%emt 0:00:41] (c3) } 11...a5
{ [%eval 46,13] [%emt 0:00:35] (Re8) } 12.Qd2
{ [%eval -45,13] [%emt 0:00:27] (a4) } 12...Nf5
{ [%eval 51,13] [%emt 0:00:34] (Ba6) } 13.b3
{ [%eval -44,13] [%emt 0:00:39] (a4) } 13...h5
{ [%eval 44,12] [%emt 0:00:33] (Ba6) } 14.Bh3
{ [%eval -26,13] [%emt 0:00:33] (a4) } 14...d4
{ [%eval 57,12] [%emt 0:00:32] (Nfe7) } 15.Bxf5
{ [%eval -17,14] [%emt 0:00:38] (Bxf5) } 15...exf5
{ [%eval 66,14] [%emt 0:00:32] (exf5) } 16.a4
{ [%eval -20, 14] [%emt 0:00:26] (Bb2) } 16...Re8
{ [%eval 79,14] [%emt 0:00:31] (Re8) } 17.Neg1
{ [%eval -26,13] [%emt 0:00:47] (Ba3) } 17...Bb7
{ [%eval 100,13] [%emt 0:00:30] (Bb7) } 18.Qg2
{ [%eval -32,13] [%emt 0:00:20] (Nh3) } 18...Nb4
{ [%eval 132,13] [%emt 0:00: 29] (Nb4) } 19.Ba3
{ [%eval -29,12] [%emt 0:00:27] (Nh3) } 19...Nd5
{ [%eval 158,15] [%emt 0:00:29] (Rb8) } 20.Bc1
{ [%eval -45,12] [%emt 0:00:24] (Bc1) } 20...f6
{ [%eval 158,14] [%emt 0:00:28] (f6) } 21.exf6
{ [%eval -45,13] [%emt 0:00:24] (Nh4) } 21...Bxf6
{ [%eval 146,14] [%emt 0:00:27] (Bxf6) } 22.Rf2
{ [%eval -53,13] [%emt 0:00:41] (Bd2) } 22...Ne3
{ [%eval 218,14] [%emt 0:00:26] (Ne3) } 23.Qh3
{ [%eval -77,14] [%emt 0:00:30] (Qh3) } 23...Qd7
{ [%eval 206,12] [%emt 0:00:26] (h4) } 24.Ba3
{ [%eval -73,12] [%emt 0:00:13] (Ra2) } 24...Re6
{ [%eval 222,13] [%emt 0:00: 25] (Bxf3) } 25.Bb2
{ [%eval -85,13] [%emt 0:00:21] (Rc1) } 25...Rae8
{ [%eval 234,14] [%emt 0:00:24] (Rae8) } 26.Rc1
{ [%eval -121,14] [%emt 0:00:29] (Rc1) } 26...Ng4
{ [%eval 327,15] [%emt 0:00:24] (13) } 27.Qg2
{ [%eval -304,14] [%emt 0:00:15] (Rff1) } 27...Nxf2+
{ [%eval 347,13] [%emt 0:00:23] (Nxf2) } 28.Qxf2
{ [%eval -304,10] [%emt 0:00:00] (Qxf2) } 28...Re3
{ [%eval 355,13] [%emt 0:00:23] (Re3) } 29.Qg2
{ [%eval -349,15] [%emt 0:00:27] (Qg2) } 29...Rxf3
{ [%eval 431,14] [%emt 0:00:22] (Rxf3) } 30.Nxf3
{ [%eval -359,16] [%emt 0:00:26] (Nxf3) } 30...Re3
{ [%eval 464,17] [%emt 0:00:21] (Re3) } 31.Rf1
{ [%eval -347,15] [%emt 0:00:12] (Rf1) } 31...Qd5
{ [%eval 465,16] [%emt 0:00:21] (Qc6) } 32.Ne1
{ [%eval -343,15] [%emt 0:00:17] (Kg1) } 32...Qxg2+
{ [%eval 497,18] [%emt 0:00:20] (Rxe1) } 33.Nxg2
{ [%eval -261,11] [%emt 0:00:00] (Nxg2) } 33...Re2
{ [%eval 511,19] [%emt 0:00:20] (Re2) } 34.Rg1
{ [%eval -647,16] [%emt 0:00:11] (Rg1) } 34...Rxc2
{ [%eval 519,18] [%emt 0:00:19] (h4) } 35.Ba3
{ [%eval -680,16] [%emt 0:00:12] (Ba3) } 35...Rd2
{ [%eval 534,16] [%emt 0:00: 19] (h4) } 36.Bc1
{ [%eval -578,18] [%emt 0:00:44] (Bc1) } 36...Rxd3
{ [%eval 546,16] [%emt 0:00:18] (Rxd3) } 37.Re1
{ [%eval -576,17] [%emt 0:00:19] (Re1) } 0-1